Cogmind - Beta 16.1 @@@ ROGUE MODE // 2026.06.18 @ 16:32:17 Player: Megaknight51 Result: Self-destructed Performance ------------- Evolutions (5) 2500 Regions Visited (7) 1400 Robots Destroyed (104) 520 Value Destroyed (3148) 3148 Prototype IDs (18) 360 Alien Tech Used (0) 0 Bonus (1000) 1000 TOTAL SCORE: 8928 Bonus ------- High Alert Combat Kills 31 Follower Combat Kills 969 Cogmind --------- Core Integrity 798/1000 Matter 203/300 Energy 150/150 System Corruption 0% Temperature Cool (0) Movement Core (1550) Ox30 Location -5/Factory Parts ------- > --- POWER (1) -------- Micro Fission Core > --- PROPULSION (4) --- (None) > --- UTILITY (7) ------ Improved Cooling System Huge Storage Unit Gun Armor Hacking Suite > --- WEAPON (5) ------- (None) > --- INVENTORY (25) --- Light Nuclear Core Light Nuclear Core Light Nuclear Core Light Nuclear Core Improved Cooling System Compact Matter Pod (0) Compact Matter Pod (0) Transmission Jammer Hardened Light Armor Plating Authchip [R/Combat] Authchip [R/Combat] Authchip [R/Combat] Authchip [R/Combat] Authchip [Device] Authchip [Weapon] Authchip [Weapon] High-powered Tractor Beam Minigun Minigun Faulty Mini Assault Cannon Improved Datajack Remote Datajack Remote Datajack Plasma Cutter Spear Peak State ------------ > --- POWER ------------ Micro Fission Core > --- PROPULSION ------- Armored Treads Wheel > --- UTILITY ---------- Improved Heat Sink Improved Cooling System Huge Storage Unit Compact Matter Pod Gun Armor Hacking Suite > --- WEAPON ----------- Beam Rifle 1B-0RG's Assimilator > --- INVENTORY -------- Light Nuclear Core Light Nuclear Core Light Nuclear Core Light Nuclear Core Improved Cooling System Compact Matter Pod Compact Matter Pod Transmission Jammer Hardened Light Armor Plating Authchip [R/Combat] Authchip [R/Combat] Authchip [R/Combat] Authchip [R/Combat] Authchip [Device] Authchip [Weapon] Authchip [Weapon] High-powered Tractor Beam Minigun Minigun Mini Assault Cannon Improved Datajack Remote Datajack Remote Datajack Plasma Cutter Spear [Rating: 108] Favorites ----------- Power Light Nuclear Core Engine Light Ion Engine Power Core Light Nuclear Core Propulsion Wheel Treads Armored Treads Leg Improved Titanium Leg Wheel Wheel Utility Huge Storage Unit Device Improved Heat Sink Storage Huge Storage Unit Hackware Hacking Suite Protection Gun Armor Weapon Minigun Energy Gun Beam Rifle Ballistic Gun Minigun Ballistic Cannon Gauss Cannon Special Weapon Mining Laser Piercing Weapon Spear Special Melee Weapon 1B-0RG's Assimilator Build | -11 -10 -10 -8 -8 -8 -6 -5 ------- Run | Yrd Mat Sub Mat Sto Rec Fac Fac Slots Evolved 10 | . . . 4 . . 4 2 Power . | . . . . . . . . Propulsion 2 | . . . 1 . . . 1 Utility 5 | . . . 1 . . 3 1 Weapon 3 | . . . 2 . . 1 . Parts Attached 88 | 7 11 9 33 7 9 12 . Power 11 | 1 1 1 4 1 . 3 . Engine 4 | 1 1 1 1 . . . . Core 7 | . . . 3 1 . 3 . Reactor . | . . . . . . . . Propulsion 20 | 2 3 3 4 . 5 3 . Treads 1 | . . . . . . 1 . Leg 8 | . . 2 4 . 2 . . Wheel 11 | 2 3 1 . . 3 2 . Hover . | . . . . . . . . Flight . | . . . . . . . . Utility 23 | 2 5 2 6 1 2 5 . Device 11 | 1 2 . 5 . 2 1 . Storage 5 | 1 1 . . . . 3 . Processor . | . . . . . . . . Hackware 2 | . . . 1 1 . . . Protection 5 | . 2 2 . . . 1 . Artifact . | . . . . . . . . Weapon 34 | 2 2 3 19 5 2 1 . Energy Gun 18 | 1 1 2 8 4 2 . . Energy Cannon . | . . . . . . . . Ballistic Gun 6 | 1 . . 5 . . . . Ballistic Cannon 5 | . . . 5 . . . . Launcher . | . . . . . . . . Special Weapon 2 | . 1 1 . . . . . Impact Weapon . | . . . . . . . . Slashing Weapon . | . . . . . . . . Piercing Weapon 2 | . . . 1 1 . . . Special Melee Weapon 1 | . . . . . . 1 . Unidentified Prototypes 5 | . . . 3 1 . 1 . Parts Lost 29 | . . 4 10 1 1 9 4 Power 3 | . . 1 1 . . 1 . Propulsion 9 | . . 2 . . 1 6 . Utility 5 | . . . 1 1 . 1 2 Weapon 12 | . . 1 8 . . 1 2 Highest Loss Streak 5 | . . 3 5 1 1 3 4 To Critical Strikes . | . . . . . . . . Average Backups 20 | 1 9 22 20 20 20 22 25 Power 1 | . . 2 1 1 1 3 4 Propulsion 3 | 1 2 7 6 3 2 . . Utility 9 | . 5 9 7 9 11 12 13 Weapon 3 | . 1 3 4 4 3 3 4 Tool/Special . | . . . . . . . . Unused Backups 39 | 1 1 4 7 2 7 . 17 Power 5 | . 1 1 1 . . . 2 Propulsion 12 | 1 . . 4 2 5 . . Utility 14 | . . 2 1 . 1 . 10 Weapon 4 | . . 1 1 . 1 . 1 Tool/Special 4 | . . . . . . . 4 Average Slot Usage (%) 80 | . 100 100 66 83 93 69 49 Engine 4 | . 14 14 4 . . . . Core 3 | . . . 2 7 8 5 5 Leg 8 | . . 3 10 28 13 . . Wheel 10 | . 28 24 . . 14 11 . Device 8 | . 12 11 7 2 7 10 11 Storage 9 | . 14 14 7 7 8 11 10 Hackware 4 | . . . 2 10 8 5 5 Protection 2 | . 1 2 3 . . 5 5 Energy Gun 12 | . 14 19 7 14 16 9 4 Ballistic Gun 8 | . 13 6 8 13 16 . . Ballistic Cannon 3 | . . . 11 . . . . Special Melee Weapon 1 | . . . . . . 5 5 Peak Build Rating 108 | 7 10 22 66 67 66 108 104 Average Rating 54 | 5 8 12 53 65 48 103 102 On Entrance 38 | . 7 10 22 65 63 38 104 Avg Prop Armor Cover (%) 9 | . . 8 . . 6 10 . Naked Turns . | . . . . . . . . Heaviest Build 155 | 12 89 96 116 98 98 155 151 Greatest Support 110 | 32 32 36 110 110 110 30 3 Greatest Overweight (x) 50 | 2 4 8 2 . 9 50 50 Average Overweight (x) 2 | . 1 3 1 . 1 7 50 Largest Inventory Capacity 25 | 8 25 25 25 25 25 25 25 Average Capacity 23 | 7 11 25 25 25 25 25 25 Most Carried 25 | 6 21 25 25 25 25 25 25 Average Carried 22 | 1 9 23 24 24 24 22 25 Final Capacity 25 | 8 25 25 25 25 25 25 25 Final Carried 25 | 5 21 25 25 25 25 25 25 Class Distribution -------------------- 42% | Scavenger-Mutant 16% | Commander-Gunner 12% | Scavenger-Gunner 8% | Tank 7% | Mutant 6% | Scavenger-Tank 4% | Hacker-Gunner Dominant Class ---------------- Mutant | -10/Materials Scavenger-Mutant | -10/Subcaves Scavenger-Gunner | -8/Materials Hacker-Gunner | -8/Storage Commander-Gunner | -8/Recycling Scavenger-Mutant | -6/Factory Scavenger-Mutant | -5/Factory Resources | -11 -10 -10 -8 -8 -8 -6 -5 ----------- Run | Yrd Mat Sub Mat Sto Rec Fac Fac Matter Collected 4714 | 300 180 299 1519 732 319 1365 . Remotely . | . . . . . . . . Salvage Created 3981 | 195 247 230 1449 955 216 625 64 Parts 240 | 21 20 12 87 61 13 22 4 Haulers Intercepted 8 | . . . 5 3 . . . Recyclers Shooed . | . . . . . . . . Parts Field Recycled . | . . . . . . . . Retrieved Matter . | . . . . . . . . Parts Self-Destructed 3 | . . 3 . . . . . Prevented . | . . . . . . . . Parts Restored . | . . . . . . . . Kills | -11 -10 -10 -8 -8 -8 -6 -5 ------- Run | Yrd Mat Sub Mat Sto Rec Fac Fac Combat Hostiles Destroyed 66 | . 4 5 25 17 4 10 1 Guns 46 | . 4 5 6 17 4 9 1 Cannons 18 | . . . 18 . . . . Classes Destroyed 16 | 2 2 3 5 2 1 1 . Worker 7 | . . . 6 1 . . . Builder 8 | . 2 . 5 1 . . . Tunneler 7 | 5 1 . . . . 1 . Hauler 8 | . . . 5 3 . . . Recycler 6 | 1 . . 3 1 . 1 . Operator 1 | . . . 1 . . . . Watcher 1 | . . . 1 . . . . Swarmer 7 | . . . . 5 . 2 . Grunt 24 | . 4 . 16 2 . 2 . Duelist 4 | . . . 3 . . 1 . Sentry 19 | . . 1 6 9 2 1 . Hunter 2 | . . . . 1 . . 1 Programmer 4 | . . . . . 1 3 . Heavy 1 | . . . . . . 1 . Artisan 1 | . . 1 . . . . . Subdweller 5 | . . 4 . . 1 . . Best Kill Streak 10 | 3 3 1 10 7 1 2 1 Combat Bots Only 6 | . 2 1 6 6 1 2 1 Max Kills in Single Turn 2 | 1 1 1 2 2 1 1 1 Gunslinging 1 | . . . . 1 . . . Exploded . | . . . . . . . . Melee . | . . . . . . . . Uniques/NPCs Destroyed . | . . . . . . . . Combat | -11 -10 -10 -8 -8 -8 -6 -5 -------- Run | Yrd Mat Sub Mat Sto Rec Fac Fac Hostile Shots Fired 471 | . 8 50 174 65 15 117 42 Missed 112 | . 1 11 36 21 2 35 6 Hits 359 | . 7 39 138 44 13 82 36 Melee 1 | . . . 1 . . . . Projectile 358 | . 7 39 137 44 13 82 36 Critical Strikes 10 | . . 1 5 1 1 2 . Damage Taken 6303 | . 104 816 2200 610 238 1656 679 Core 903 | . 10 148 296 90 15 142 202 Absorbed by Shields 52 | . . . . . 10 42 . Regen/Repaired (Parts) 524 | . . . . . . 524 . Core Remaining (%) 61 | 100 . 36 . . 27 83 . Volleys Fired 263 | 10 14 44 77 40 10 67 1 Largest 4 | 2 2 2 4 4 4 2 1 Hottest 210 | 60 100 165 210 180 162 111 56 Shots Fired 697 | 20 25 86 268 160 34 103 1 Gun 530 | 20 22 72 118 160 34 103 1 Cannon 150 | . . . 150 . . . . Launcher . | . . . . . . . . Special 17 | . 3 14 . . . . . Kinetic 346 | 10 11 22 209 80 14 . . Thermal 346 | 10 14 64 54 80 20 103 1 Explosive . | . . . . . . . . Electromagnetic 5 | . . . 5 . . . . Robot Hit Streak 13 | 5 12 12 12 13 6 8 2 Robot Miss Streak 9 | 2 2 1 9 5 4 3 . Penetration Max 1 | . . . 1 . . . . Secondary Targets 3 | . . . . 3 . . . Max Gunslinging Chain 1 | . . . . 1 . . . Shots Hit Robots 387 | 11 15 46 144 90 17 63 1 Core Hits 206 | 7 13 11 97 44 10 23 1 Critical Kills . | . . . . . . . . Critical Parts Destroyed 2 | . . 1 . 1 . . . Critical Strikes 26 | . . 2 10 4 1 9 . Burn 15 | . . 1 1 3 1 9 . Destroy 2 | . . 1 . 1 . . . Blast 9 | . . . 9 . . . . Melee Attacks 3 | . . . 1 2 . . . Impact . | . . . . . . . . Slashing . | . . . . . . . . Piercing 3 | . . . 1 2 . . . Sneak Attacks . | . . . . . . . . Combat Hostiles . | . . . . . . . . Follow-up Attacks . | . . . . . . . . Damage Inflicted 7397 | 135 179 665 3323 1579 337 1164 15 Guns 5209 | 135 179 648 1152 1579 337 1164 15 Cannons 2163 | . . . 2163 . . . . Explosions . | . . . . . . . . Melee . | . . . . . . . . Ramming 25 | . . 17 8 . . . . Kinetic 3990 | 90 79 189 2704 785 143 . . Thermal 3333 | 45 100 459 562 794 194 1164 15 Explosive . | . . . . . . . . Electromagnetic 49 | . . . 49 . . . . Impact . | . . . . . . . . Slashing . | . . . . . . . . Piercing . | . . . . . . . . Highest Corruption 3 | . . . . . . 3 . Average Corruption 2 | . . . . . . 2 . Corruption Purged . | . . . . . . . . Corruption Blocked . | . . . . . . . . Effects 15 | . . . . . . 15 . Message Errors 6 | . . . . . . 6 . Matter Fused 5 | . . . . . . 5 . Heat Flow Errors 1 | . . . . . . 1 . Data Loss (minor) 2 | . . . . . . 2 . Misfires 1 | . . . . . . 1 . Overload Shots . | . . . . . . . . Overflow Damage 37 | . . . 37 . . . . Projectiles 37 | . . . 37 . . . . Explosions . | . . . . . . . . Melee . | . . . . . . . . Knockbacks 34 | . . . 34 . . . . Impact . | . . . . . . . . Kinetic 30 | . . . 30 . . . . Secondary 4 | . . . 4 . . . . Self-Inflicted Damage 8 | . . 8 . . . . . Shots . | . . . . . . . . Rammed 1 | . . 1 . . . . . Targets Rammed 2 | . . 1 1 . . . . Kicked 1 | . . . 1 . . . . Crushed . | . . . . . . . . Highest Temperature 391 | . 84 282 391 317 264 190 . Average Temperature 99 | . 27 84 113 102 72 37 . Received Heat Transfer 2165 | . 60 436 1260 171 58 180 . Effects 11 | . . . 7 1 3 . . Shutdowns 1 | . . . 1 . . . . Interference 7 | . . . 4 . 3 . . Matter Decay 1 | . . . 1 . . . . Damage (minor) 2 | . . . 1 1 . . . Siege Activations . | . . . . . . . . Martial Activations . | . . . . . . . . Shielding Activations . | . . . . . . . . Robots Disrupted . | . . . . . . . . Combat Hostiles . | . . . . . . . . Robots Corrupted 1 | . . . 1 . . . . Combat Hostiles 1 | . . . 1 . . . . Parts Fried 1 | . . . 1 . . . . Impact Corruptions 1 | . . . 1 . . . . Robots Melted 2 | . . . . . . 2 . Combat Hostiles 1 | . . . . . . 1 . Parts Melted 20 | . . . 1 5 5 9 . Heat Transferred 8453 | 100 225 1147 1251 1919 518 3256 37 Parts Sabotaged . | . . . . . . . . Parts Stolen . | . . . . . . . . Parts Stripped . | . . . . . . . . Power Chain Reactions . | . . . . . . . . Alert | -11 -10 -10 -8 -8 -8 -6 -5 ------- Run | Yrd Mat Sub Mat Sto Rec Fac Fac Maximum Alert Level 2 | . . . 1 2 1 2 1 Low Security (%) 51 | 100 100 . 56 80 64 . 64 Level 1 37 | . . . 43 6 35 63 35 Level 2 10 | . . . . 12 . 36 . Level 3 . | . . . . . . . . Level 4 . | . . . . . . . . Level 5 . | . . . . . . . . High Security . | . . . . . . . . Max Security . | . . . . . . . . Peak Influence 537 | 10 42 . 346 531 333 537 235 Initial 323 | . . . . 142 199 323 235 Average 203 | 1 8 . 151 199 167 380 171 Influence Increases 3798 | 30 148 20 860 941 445 1324 30 Destroy 0b10 Robot/C 1840 | . 80 20 500 460 140 620 20 Destroy 0b10 Robot/NC 210 | 30 15 . 105 35 5 20 . Destroy Leader 454 | . 20 . 132 148 . 144 10 Allied During Kill 508 | . . . . 251 103 154 . Successful Hack 46 | . . . 9 10 17 10 . Select Force Hacks 180 | . . . . . 180 . . Disable Machine 90 | . 15 . 45 30 . . . Destroy Structure 125 | . 3 . 54 7 . 61 . Advance Influence 300 | . . . . . . 300 . Lose Combat Pursuer 45 | . 15 . 15 . . 15 . Influence Decreases 3743 | 30 148 20 523 765 902 899 456 Entered New Map 788 | . . . . 195 314 33 246 Time Decay 2285 | 30 148 20 423 410 518 626 110 Lost Part 250 | . . . 100 10 10 90 40 Lost Ally 270 | . . . . . 60 150 60 Purge Threat 150 | . . . . 150 . . . Squads Dispatched 13 | . . . 1 3 . 9 . Investigation 1 | . . . . 1 . . . Extermination 3 | . . . . . . 3 . Reinforcement 4 | . . . 1 . . 3 . Assault . | . . . . . . . . Garrison 5 | . . . . 2 . 3 . Intercept . | . . . . . . . . Searches Triggered . | . . . . . . . . Construction Impeded . | . . . . . . . . Haulers Reinforced . | . . . . . . . . Active Scanning Responses . | . . . . . . . . Cargo Convoy Interrupts . | . . . . . . . . Stealth | -11 -10 -10 -8 -8 -8 -6 -5 --------- Run | Yrd Mat Sub Mat Sto Rec Fac Fac Distress Signals 9 | . . . 5 3 1 . . Communications Jammed . | . . . . . . . . Distress Signals . | . . . . . . . . Times Spotted 148 | . 5 13 51 31 9 38 1 Peak Tracking Total 8 | . 2 3 6 8 4 4 2 Tactical Retreats 8 | . 1 5 1 . . 1 . Traps | -11 -10 -10 -8 -8 -8 -6 -5 ------- Run | Yrd Mat Sub Mat Sto Rec Fac Fac Traps Triggered 4 | . . . . 2 . 2 . Indirectly . | . . . . . . . . Trap Hack Attempts . | . . . . . . . . Triggered . | . . . . . . . . Disarmed . | . . . . . . . . Reprogrammed . | . . . . . . . . Reused . | . . . . . . . . Traps Extracted . | . . . . . . . . Installed . | . . . . . . . . Triggered . | . . . . . . . . Machines | -11 -10 -10 -8 -8 -8 -6 -5 ---------- Run | Yrd Mat Sub Mat Sto Rec Fac Fac Machines Disabled 7 | . 1 1 3 2 . . . Max in Single Turn 1 | . 1 1 1 1 . . . Garrison Access 1 | . . . . 1 . . . Machines Repaired . | . . . . . . . . Machines Dismantled . | . . . . . . . . Machines Sabotaged . | . . . . . . . . Overloaded Fab Kills . | . . . . . . . . Hacking | -11 -10 -10 -8 -8 -8 -6 -5 --------- Run | Yrd Mat Sub Mat Sto Rec Fac Fac Machines Accessed 28 | . 1 2 4 7 10 4 . Terminals 15 | . 1 . 4 6 4 . . Fabricators 2 | . . . . . . 2 . Repair Stations 1 | . . . . . . 1 . Recycling Units 6 | . . . . . 6 . . Scanalyzers 1 | . . . . . . 1 . Garrison Access 1 | . . . . 1 . . . Total Hacks 59 | . 4 5 11 14 16 9 . Successful 32 | . 2 5 3 7 10 5 . Failed 26 | . 2 . 8 6 6 4 . Catastrophic 4 | . 1 . . 1 1 1 . Database Lockouts 1 | . . . . 1 . . . Manual 40 | . 4 . 11 11 14 . . Terminals 37 | . 4 . 11 12 10 . . Fabricators 3 | . . . . . . 3 . Repair Stations 4 | . . . . . . 4 . Recycling Units 6 | . . . . . 6 . . Scanalyzers 2 | . . . . . . 2 . Garrison Access 2 | . . . . 2 . . . Terminal Hacks 12 | . . 5 . 4 3 . . Record 4 | . . 4 . . . . . Part Schematic 1 | . . . . . 1 . . Robot Schematic 3 | . . . . 1 2 . . Open Door 2 | . . . . 2 . . . Unreport Threat 1 | . . . . 1 . . . Proto ID Catalog 1 | . . 1 . . . . . Fabricator Hacks . | . . . . . . . . Repair Station Hacks 4 | . . . . . . 4 . Scan Component 2 | . . . . . . 2 . Repair 2 | . . . . . . 2 . Recycling Unit Hacks . | . . . . . . . . Scanalyzer 1 | . . . . . . 1 . Insert Component 1 | . . . . . . 1 . Garrison Access Hacks 1 | . . . . 1 . . . Seal Access 1 | . . . . 1 . . . Unauthorized Hacks 14 | . 2 . 3 2 7 . . Terminals 8 | . 2 . 3 2 1 . . Botnet 7 | . 1 . 3 2 1 . . Operators 1 | . 1 . . . . . . Fabricators . | . . . . . . . . Repair Stations . | . . . . . . . . Recycling Units 6 | . . . . . 6 . . Tunnel 6 | . . . . . 6 . . Scanalyzers . | . . . . . . . . Garrison Access . | . . . . . . . . Data Cores Recovered . | . . . . . . . . Used . | . . . . . . . . Hacking Detections 17 | . 1 . 4 5 4 3 . Full Trace Events . | . . . . . . . . Feedback Events . | . . . . . . . . Feedback Blocked . | . . . . . . . . Robot Schematics Acquired 3 | . . . . 1 2 . . Robots Built . | . . . . . . . . Authchips . | . . . . . . . . Time . | . . . . . . . . Total Robot Build Rating . | . . . . . . . . Part Schematics Acquired 1 | . . . . . 1 . . Parts Built . | . . . . . . . . Authchips . | . . . . . . . . Time . | . . . . . . . . Total Part Build Rating . | . . . . . . . . Part Studies Acquired . | . . . . . . . . Parts Repaired 2 | . . . . . . 2 . Time 85 | . . . . . . 85 . Parts Recycled . | . . . . . . . . Recycled Matter . | . . . . . . . . Retrieved Matter . | . . . . . . . . Retrieved Components . | . . . . . . . . Parts Scanalyzed 1 | . . . . . . 1 . Part Schematics Acquired . | . . . . . . . . Parts Damaged 1 | . . . . . . 1 . Bothacking | -11 -10 -10 -8 -8 -8 -6 -5 ------------ Run | Yrd Mat Sub Mat Sto Rec Fac Fac Used RIF Installer . | . . . . . . . . Robots Hacked . | . . . . . . . . Non-combat . | . . . . . . . . Combat . | . . . . . . . . Robot Hacks Applied . | . . . . . . . . Relay Couplers Released . | . . . . . . . . Fabnet Peak Effective % . | . . . . . . . . Robots Rewired 10 | . . . . . 10 . . Allies Hacked 2 | . . . . . . 2 . Hacks Repelled . | . . . . . . . . Allies | -11 -10 -10 -8 -8 -8 -6 -5 -------- Run | Yrd Mat Sub Mat Sto Rec Fac Fac Total Allies 20 | . . . . 10 10 . . Largest Group 18 | . . . . 10 18 6 . Highest-Rated Group 274 | . . . . 173 274 96 . Highest-Rated Ally 29 | . . . . 29 29 27 . Total Orders 26 | . . . . . 9 17 . STAY 1 | . . . . . 1 . . FOLLOW 9 | . . . . . 6 3 . TUNNEL 2 | . . . . . . 2 . DROP 3 | . . . . . . 3 . PICKUP 6 | . . . . . 1 5 . COLLECT 5 | . . . . . 1 4 . Ally Attacks 227 | . . . . 43 33 148 3 Total Damage 3566 | . . . . 460 540 2535 31 Kills 36 | . . . . 7 6 23 . Allies Corrupted . | . . . . . . . . Allies Melted . | . . . . . . . . Borg Created 11 | . . . . . . 11 . Largest Collective 4 | . . . . . . 4 . Intel | -11 -10 -10 -8 -8 -8 -6 -5 ------- Run | Yrd Mat Sub Mat Sto Rec Fac Fac Active Infowar (turns) 4842 | 68 710 1317 1206 . . 1541 . Structural 83 | . 83 . . . . . . Seismic 4759 | 68 627 1317 1206 . . 1541 . Robot Analysis Total . | . . . . . . . . Derelict Logs Recovered 1 | . . 1 . . . . . Drone Launches . | . . . . . . . . Drone Recoveries . | . . . . . . . . Exploration | -11 -10 -10 -8 -8 -8 -6 -5 ------------- Run | Yrd Mat Sub Mat Sto Rec Fac Fac Turns Passed 9965 | 152 812 1626 2571 994 1432 2154 224 Spaces Moved 4567 | 107 427 892 946 513 882 792 8 Core 27 | 8 . . . . . 11 8 Treads 2 | . . . . . . 2 . Legs 1778 | . . . 946 513 319 . . Wheels 2760 | 99 427 892 . . 563 779 . Hover . | . . . . . . . . Flight . | . . . . . . . . Fastest Speed 50 | 50 80 129 120 120 120 125 2550 Average Speed 163 | 98 103 141 215 120 128 212 2550 Slowest Speed 2550 | 150 140 200 270 120 215 2550 2550 Overloaded Moves . | . . . . . . . . Propulsion Burnouts . | . . . . . . . . Robots Hopped . | . . . . . . . . Potential Cave-ins 1 | . . . . . 1 . . Cave-ins Triggered . | . . . . . . . . Exploration Rate (%) 38 | 5 25 46 56 65 89 21 2 Regions Visited 7 Branch Regions 3 Pre-discovered Areas 7 | . . 1 . . 6 . . Known Exits Taken 1 | . . . 1 . . . . Unknown Exits Taken 6 | 1 1 1 . 1 1 1 . Scrap Searched 2 | . . 2 . . . . . Spaces Dug 5 | . 2 . 1 2 . . . Terrain Destroyed 67 | . 2 . 63 2 . . . Melee 3 | . . . 1 2 . . . Projectile 64 | . 2 . 62 . . . . AOE . | . . . . . . . . Terrain Rammed . | . . . . . . . . Walls Destroyed . | . . . . . . . . Machines Disabled . | . . . . . . . . Actions | -11 -10 -10 -8 -8 -8 -6 -5 --------- Run | Yrd Mat Sub Mat Sto Rec Fac Fac Total 6500 | 130 763 1141 1305 806 1169 1159 27 Wait 1302 | . 274 155 191 231 178 255 18 Move 4561 | 106 426 892 945 512 881 791 8 Hop . | . . . . . . . . Pick Up 94 | 6 20 15 21 4 18 10 . Fast Attach 30 | 7 . . 14 1 2 6 . Attach 18 | . . 4 6 . 3 5 . Detach 3 | . . . . . . 3 . Swap 78 | . 20 16 24 8 6 4 . Drop 81 | 1 9 15 25 8 18 5 . Fire 263 | 10 14 44 77 40 10 67 1 Melee 3 | . . . 1 2 . . . Ram . | . . . . . . . . Kick 1 | . . . 1 . . . . Crush . | . . . . . . . . Escape Stasis . | . . . . . . . . Rewire 54 | . . . . . 53 1 . Trap . | . . . . . . . . Miscellaneous 12 | . . . . . . 12 . Route ------- -11/Scrapyard -10/Materials -10/Subcaves -8/Materials (discovered 4 exits: *Fac x3 / *Sto) -8/Storage (discovered 2 exits: *Fac / *Rec) -8/Recycling -6/Factory -5/Factory History --------- Turn | Location | Event 28 | -11/Scrapyard | Discovered new exit (range 15) 153 | -11/Scrapyard | Entered Materials 303 | -10/Materials | Build established: Mutant 370 | -10/Materials | Discovered new exit (range 10) 965 | -10/Materials | Entered Subcaves 966 | -10/Subcaves | Build established: Scavenger-Mutant 1674 | -10/Subcaves | Ambushed by angry Subdweller bent on revenge 1765 | -10/Subcaves | A Subdweller sparked back to life 1765 | -10/Subcaves | A Subdweller sparked back to life 1765 | -10/Subcaves | A Subdweller sparked back to life 1814 | -10/Subcaves | Lost 3 parts (1p2n) 1886 | -10/Subcaves | Core integrity fell below 50% 1912 | -10/Subcaves | Found Prototype Protection 1946 | -10/Subcaves | Discovered new exit (range 11) 2182 | -10/Subcaves | Learned 4 Materials zone layouts 2199 | -10/Subcaves | Learned location of Zion (-6) 2199 | -10/Subcaves | Met a Zionite searching for "candidates" 2218 | -10/Subcaves | Visited Clippyterm 2222 | -10/Subcaves | Learned Factory fabricator intel 2222 | -10/Subcaves | Learned Research machine intel 2375 | -10/Subcaves | Visited 4L-MR0's lab 2382 | -10/Subcaves | Identified Gun Armor 2400 | -10/Subcaves | Found Arachnoskeleton 2429 | -10/Subcaves | Found Prototype Special Melee Weapon 2591 | -10/Subcaves | Entered Materials 2591 | -8/Materials | Evolved 4 slots: Propulsion x1, Utility x1, Weapon x2 2592 | -8/Materials | Identified exit to Factory 2592 | -8/Materials | Identified exit to Storage 2594 | -8/Materials | Attached Arachnoskeleton, gained temporary slots: Propulsion x3 2898 | -8/Materials | Build established: Scavenger-Tank 3120 | -8/Materials | Discovered exit to Factory (range 16) 3500 | -8/Materials | Build established: Tank 4145 | -8/Materials | Lost 3 parts (1p2w) 4219 | -8/Materials | Core integrity fell below 50% 4247 | -8/Materials | Lost 5 parts (1u4w) 4628 | -8/Materials | Build established: Scavenger-Gunner 4754 | -8/Materials | Discovered exit to Factory (range 4) 5162 | -8/Materials | Entered Storage 5472 | -8/Storage | Used back door to open Recycling access 5472 | -8/Storage | Discovered new exit (range 5) 5654 | -8/Storage | Discovered exit to Factory (range 16) 5818 | -8/Storage | Build established: Hacker-Gunner 5871 | -8/Storage | Central database locked down 5909 | -8/Storage | Garrison activated, responded to threat 5960 | -8/Storage | Assisted by bots powering up and referring to "LRC-V3" 6156 | -8/Storage | Entered Recycling 6156 | -8/Recycling | Accompanied by 10 allies 6245 | -8/Recycling | Build established: Commander-Gunner 6757 | -8/Recycling | Discovered new exit (range 7) 7588 | -8/Recycling | Entered Factory 7588 | -6/Factory | Accompanied by 6 allies 7588 | -6/Factory | Evolved 4 slots: Utility x3, Weapon x1 7589 | -6/Factory | Loaded intel: 5 fabricator locations 7608 | -6/Factory | Attached Gun Armor, gained temporary slots: Weapon x2 7612 | -6/Factory | Identified 1B-0RG's Assimilator 7639 | -6/Factory | Assimilating Savior 3a into Collective. 7642 | -6/Factory | Assimilating Scavenger 3a into Collective. 7645 | -6/Factory | Assimilating Commando 3a into Collective. 7676 | -6/Factory | Assimilating Defender 3a into Collective. 7910 | -6/Factory | Build established: Scavenger-Mutant 8108 | -6/Factory | Repaired Broken Hpw. Tractor Beam 8141 | -6/Factory | Repaired Plasma Cutter 8163 | -6/Factory | Assimilating Guardian 5a into Collective. 8304 | -6/Factory | Assimilating Engineer 5a into Collective. 8340 | -6/Factory | Assimilating Processor 5a into Collective. 8381 | -6/Factory | Garrison activated, responded to threat 8420 | -6/Factory | Assimilating Conveyor 5a into Collective. 8554 | -6/Factory | Assimilating Excavator 5a into Collective. 9185 | -6/Factory | Lost 3 parts (1n1u1w) 9328 | -6/Factory | Assimilating Conveyor 5b into Collective. 9430 | -6/Factory | Discovered new exit (range 14) 9448 | -6/Factory | Assimilating Slayer 5a into Collective. 9742 | -6/Factory | Entered another Factory area 9742 | -5/Factory | Accompanied by 3 allies 9742 | -5/Factory | Evolved 2 slots: Propulsion x1, Utility x1 9935 | -5/Factory | Lost 3 allies 9966 | -5/Factory | Self-destructed Last Messages --------------- 09951_ Penetrated by Slug. 09951_ Com. Matter Pod destroyed. 09952_ K-01 Serf collects debris. 09953_ Penetrated by Slug. 09953_ K-01 Serf collects debris. 09955_ Penetrated by Slug. 09956_ K-01 Serf collects debris. 09959_ Penetrated by Slug. 09959_ K-01 Serf collects debris. 09962_ Penetrated by Slug. 09962_ Slug penetrates Wall. 09962_ K-01 Serf collects debris. 09962_ Penetrated by Slug. 09962_ 1B-0RG's Assimilator destroyed. 09963_ K-01 Serf collects debris. 09965_ Penetrated by Slug. 09966_ Imp. Heat Sink destroyed. 09966_ Penetrated by Slug. 09966_ K-01 Serf collects debris. 09966_ Temporary Weapon slot lost. Map ----- +----------------------------------------------------+ | ?????????????????????????????????????????? | | ?????????????????????????????????????????? | | ?????????????????????????????????????????? | | ?????????????????????????????????????????? | | ?????????????????????????????????????????? | | ?????????????????????????????????????????? | | ??????????? ????????????????????????????? | | ??????????? ########????????????????????? | | ???????????? ????????????????????? | | ???????????? ????????????????????? | | ????????????? ????????????????????? | | ????????????? ????????????????????? | | ?????????????? ????????????????????? | | ??????????????# #????????????????????? | | ??????????????# #????????????????????? | | ??????????????# #????????????????????? | | ??????????????# #????????????????????? | | ??????????????# #????????????????????? | | ??????????????# ! !!#??????????##########? | | ??????????????# ![[[#????????? #? | | ??????????????#[!=%!#????????? #? | | ??????????????# [/k[########? #? | | ??????????????# ! [%[/] #? #? | | ??????????????# k %= # #? | | ??????????????# [ # #? | | ??????????????# @ + #? | | ??????????????# # #? | | ??????????????# # #? | | ????########### #? #? | | ???? #? #? | | ??? #?? #? | | ??? #??###########? | | ??? h #?????????????? | | ??? #?????????????? | | ?????### ######### #?????????????? | | ???????# ????????# #?????????????? | | ???????# ?????????#######?????????????? | | ???????# ?????????????????????????????? | | ???????# ??????????????????????????????? | | ???????# ???????????????????????????????? | | ?????????????????????????????????????????? | | ?????????????????????????????????????????? | | ?????????????????????????????????????????? | | ?????????????????????????????????????????? | | ?????????????????????????????????????????? | | ?????????????????????????????????????????? | | ?????????????????????????????????????????? | | ?????????????????????????????????????????? | | ?????????????????????????????????????????? | | ?????????????????????????????????????????? | +----------------------------------------------------+ Best States ------------- Heat Dissipation 81 Energy Generation 18 Energy Capacity 265 Matter Stores 450 Matter Capacity 450 Sight Range 16 Terrain Scan Density 10 Armor Coverage 150 Evasion (%) 55 Recoil Reduction 1 Offensive Hacking 20 Authchip Count 7 Item Schematics ----------------- Plasma Cutter | -8/Recycling | Hacked Robot Schematics ------------------ M-28 Smith | -8/Storage | Hacked O-24 Administrator | -8/Recycling | Hacked L-31 Rogue | -8/Recycling | Hacked Fabricated ------------ Nothing Repaired ---------- Hpw. Tractor Beam | 99% | -6/Factory | Broken Plasma Cutter | 40% | -6/Factory Studied --------- None Alien Tech Used ----------------- None Achievements -------------- None Challenges ------------ None Game ------ Seed RocketPlatingPick Manual? 0 Play Time 01:00:47 Cumulative 161.3 hours Start 2026.06.18 @ 15:31:46 End 2026.06.18 @ 16:32:17 Sessions 1 Manual Loads 0 Difficulty Rogue Special Mode None Game No. 303 Rogue 303 Adventurer 0 Explorer 0 Win Type - Total 4 Types 3/0/0/1/0/0/0/0/0/0 Lore% 67 Gallery% 48 Achievement% 45 Wizard Run 0 Options --------- Layout 0 ASCII 0 Keyboard 1 Movement Arrows Keybinds 0 Fullscreen 1 Font 18/Smallcaps Map View 76x50 Zoom Use 34% Tactical HUD 1 Map Filters NONE Filters NONE Steam 1 RUN: 466cd920-4089-4fe0-aa59-5af50d8cbc8c